fUSD/lending_fUSD_20251221
["ID","MTS","AMOUNT","RATE_DAILY","PERIOD"]
[399437592,1766352643650,-567.38782862,0.000169,2]
[399437593,1766352643659,-23647.07950569,0.000169,2]
[399437594,1766352643668,-2537.91299639,0.000169,2]
[399437595,1766352643677,-199.8712032,0.00016921,2]
[399437596,1766352643686,-3500.0,0.00016931,2]
[399437597,1766352643695,-3500.0,0.00016931,2]
[399437598,1766352643704,-150.0,0.00016973,2]
[399437599,1766352643713,-151.16864998,0.00016983,2]
[399437600,1766352643723,-500.0,0.00016986,2]
[399437601,1766352643732,-500.0,0.00016986,2]
[399437602,1766352643741,-1962.83301401,0.0001699,2]
[399437603,1766352643750,-1962.83301401,0.0001699,2]
[399437604,1766352643759,-500.0,0.00016991,2]
[399437605,1766352643769,-500.0,0.00016991,2]
[399437606,1766352643778,-500.0,0.00016991,2]
[399437607,1766352643787,-151.0,0.00016997,2]
[399437608,1766352643796,-1101.62355977,0.00016999,5]
[399437609,1766352643806,-500.0,0.00016999,2]
[399437610,1766352643815,-500.0,0.00016999,2]
[399437611,1766352643824,-500.0,0.00016999,2]
[399437612,1766352643833,-500.0,0.00016999,2]
[399437613,1766352643842,-500.0,0.00016999,2]
[399437614,1766352643850,-500.0,0.00016999,2]
[399437615,1766352643859,-500.0,0.00016999,2]
[399437616,1766352643869,-500.0,0.00016999,2]
[399437617,1766352643878,-500.0,0.00016999,2]
[399437618,1766352643888,-500.0,0.00016999,2]
[399437619,1766352643900,-248.57957861,0.00016999,2]
[399437620,1766352643910,-300.0,0.00016999,2]
[399437621,1766352643921,-500.0,0.00016999,2]
[399437622,1766352643932,-208.04,0.00016999,2]
[399437623,1766352643942,-300.0,0.00016999,2]
[399437624,1766352643953,-666.0,0.00016999,2]
[399437625,1766352643963,-300.0,0.00016999,2]
[399437626,1766352643972,-300.0,0.00016999,2]
[399437627,1766352643983,-666.0,0.00016999,2]
[399437628,1766352643992,-300.0,0.00016999,2]
[399437629,1766352644001,-2919223.03101647,0.00017,2]
[399437630,1766352644026,-110894.46438763,0.00017,2]
[399437631,1766352644038,-822.61512255,0.00017,2]
[399437632,1766352644051,-852.46163084,0.00017,2]
[399437633,1766352644062,-1244.52080482,0.00017,2]
[399437634,1766352644073,-360.42425931,0.00017,2]
[399437635,1766352644084,-562.61881129,0.00017,2]
[399437636,1766352644099,-500.0,0.00017,2]
[399437637,1766352644110,-1528.70657414,0.00017,2]
[399437638,1766352644121,-139346.020619,0.00017,2]
[399437639,1766352644131,-29783.74906049,0.00017,2]
[399437640,1766352644143,-5537.04231219,0.00017,2]
[399437641,1766352644155,-1714.06444484,0.00017,2]
[399437642,1766352644234,-475.776,0.000109,2]
[399437643,1766352644245,-862.20769992,0.000109,2]
[399437644,1766352644255,-1345.75287264,0.00017,2]
[399437645,1766352644267,-3041.50746755,0.00017,2]
[399437646,1766352644278,-371.28768794,0.00017,2]
[399437647,1766352644290,-666.106399,0.00017,2]
[399437648,1766352644300,-3000.0,0.00017,2]
[399437649,1766352644311,-1856.47342881,0.00017,2]
[399437650,1766352644322,-8033.95283496,0.00017,2]
[399437651,1766352644333,-1721.6,0.00017,2]
[399437652,1766352644344,-1483.74250596,0.00017,2]
[399437659,1766352645891,-6279.87359996,0.00010683,2]
[399437660,1766352645902,-6420.70568648,0.00010683,2]
[399437661,1766352645919,-9341.83967932,0.00010683,2]
[399437668,1766352658018,173.0,0.00034521,30]
[399437692,1766352697537,905.884,0.00035279,41]
[399437775,1766353297334,917.101,0.00035433,42]
[399437780,1766353471945,19659.83148298,0.000356,30]
[399437837,1766353693000,169.44,7.906e-05,2]
[399437838,1766353740477,1000.0,0.00035614,30]
[399437839,1766353741028,1000.0,0.00035432,30]
[399437840,1766353741280,1000.0,0.00035278,30]
[399437843,1766353759453,1000.0,0.00035616,120]
[399437845,1766353760479,2593.88539772,0.0003561,30]
[399437848,1766353767245,1000.0,0.00035616,120]
[399437849,1766353777806,1000.0,0.00035616,120]
[399437855,1766353831788,-1500.0,9.824e-05,2]
[399437856,1766353831798,-3055.22,0.00010153,2]
[399437857,1766353831807,-250.0,0.00010262,2]
[399437858,1766353831817,-250.0,0.00010359,2]
[399437859,1766353831826,-622.24805634,0.00010381,2]
[399437860,1766353831836,-500.0,0.00010433,2]
[399437861,1766353831845,-151.0,0.00010472,2]
[399437862,1766353831854,-162.0,0.00010474,2]
[399437863,1766353831863,-1200.0,0.00010474,2]
[399437864,1766353831873,-300.0,0.00010474,2]
[399437865,1766353831883,-2786.87692699,0.00010475,2]
[399437866,1766353831895,-19962.80301647,0.00010475,2]
[399437867,1766353831912,-5187.80675912,0.00010475,2]
[399437868,1766353831923,-474.78399393,0.00010475,2]
[399437869,1766353831934,-48155.35420021,0.00010475,2]
[399437870,1766353831944,-4638.41282382,0.00010475,2]
[399437871,1766353831955,-13285.14,0.00010475,2]
[399437872,1766353831966,-4308.48920621,0.00010475,2]
[399437938,1766353837821,-191.3011903,0.00010474,2]
[399437939,1766353837830,-4808.70484722,0.00010475,2]
[399437940,1766353837841,-8196.45669297,0.00010475,2]
[399437941,1766353837892,-888195.17153306,0.00010475,2]
[399437942,1766353837901,-300.0,0.00010481,2]
[399437943,1766353837910,-1200.0,0.00010481,2]
[399437944,1766353837919,-2500.0,0.00010483,2]
[399437945,1766353837928,-689.39447174,0.00010533,2]
[399437946,1766353837938,-150.0,0.00010573,2]
[399437947,1766353837947,-1618.06,0.00010574,2]
[399437949,1766353837956,-500.0,0.00010574,2]
[399437950,1766353837965,-500.0,0.00010574,2]
[399437951,1766353837974,-500.0,0.00010574,2]
[399437952,1766353837982,-500.0,0.00010574,2]
[399437953,1766353837991,-500.0,0.00010574,2]
[399437954,1766353838000,-500.0,0.00010574,2]
[399437955,1766353838009,-500.0,0.00010574,2]
[399437956,1766353838018,-500.0,0.00010574,2]
[399437957,1766353838028,-500.0,0.00010574,2]
[399437958,1766353838036,-500.0,0.00010574,2]
[399437959,1766353838046,-500.0,0.00010574,2]
[399437960,1766353838055,-500.0,0.00010574,2]
[399437961,1766353838064,-500.0,0.00010574,2]
[399437963,1766353838074,-500.0,0.00010574,2]
[399437965,1766353838083,-500.0,0.00010574,2]
[399437966,1766353838093,-500.0,0.00010574,2]
[399437968,1766353838102,-500.0,0.00010574,2]
[399437970,1766353838112,-500.0,0.00010574,2]
[399437971,1766353838122,-500.0,0.00010574,2]
[399437972,1766353838135,-500.0,0.00010574,2]
[399437973,1766353838144,-500.0,0.00010574,2]
[399437974,1766353838154,-500.0,0.00010574,2]
[399437975,1766353838164,-500.0,0.00010574,2]
[399437976,1766353838174,-500.0,0.00010574,2]
[399437977,1766353838184,-500.0,0.00010574,2]
[399437978,1766353838193,-500.0,0.00010574,2]
[399437979,1766353838202,-500.0,0.00010574,2]
[399437980,1766353838212,-500.0,0.00010574,2]
[399437981,1766353838222,-500.0,0.00010574,2]
[399437982,1766353838232,-500.0,0.00010574,2]
[399437983,1766353838241,-500.0,0.00010574,2]
[399437984,1766353838251,-500.0,0.00010574,2]
[399437985,1766353838261,-500.0,0.00010574,2]
[399437986,1766353838271,-500.0,0.00010574,2]
[399437987,1766353838280,-500.0,0.00010574,2]
[399437988,1766353838290,-500.0,0.00010574,2]
[399437989,1766353838300,-500.0,0.00010574,2]
[399437990,1766353838310,-500.0,0.00010574,2]
[399437991,1766353838320,-500.0,0.00010574,2]
[399437992,1766353838330,-500.0,0.00010574,2]
[399437993,1766353838340,-500.0,0.00010574,2]
[399437994,1766353838350,-500.0,0.00010574,2]
[399437995,1766353838360,-500.0,0.00010574,2]
[399437996,1766353838370,-500.0,0.00010574,2]
[399437997,1766353838379,-500.0,0.00010574,2]
[399437998,1766353838388,-500.0,0.00010574,2]
[399437999,1766353838397,-500.0,0.00010574,2]
[399438000,1766353838406,-500.0,0.00010574,2]
[399438001,1766353838415,-500.0,0.00010574,2]
[399438002,1766353838425,-500.0,0.00010574,2]
[399438003,1766353838434,-500.0,0.00010574,2]
[399438004,1766353838443,-500.0,0.00010574,2]
[399438005,1766353838452,-500.0,0.00010574,2]
[399438006,1766353838461,-500.0,0.00010574,2]
[399438007,1766353838471,-500.0,0.00010574,2]
[399438008,1766353838480,-500.0,0.00010574,2]
[399438009,1766353838489,-500.0,0.00010574,2]
[399438010,1766353838499,-500.0,0.00010574,2]
[399438011,1766353838508,-500.0,0.00010574,2]
[399438012,1766353838517,-500.0,0.00010574,2]
[399438013,1766353838530,-500.0,0.00010574,2]
[399438014,1766353838540,-371.38339594,0.00010574,2]
[399438015,1766353838549,-500.0,0.00010574,2]
[399438016,1766353838558,-500.0,0.00010574,2]
[399438017,1766353838567,-500.0,0.00010574,2]
[399438018,1766353838577,-500.0,0.00010574,2]
[399438019,1766353838587,-500.0,0.00010574,2]
[399438020,1766353838597,-6032.22,0.00010575,2]
[399438021,1766353838606,-150.99,0.00010576,2]
[399438022,1766353838616,-9999.99,0.00010576,2]
[399438023,1766353838626,-150.99,0.00010576,2]
[399438024,1766353838636,-9999.99,0.00010576,2]
[399438025,1766353838645,-289.03,0.00010576,2]
[399438026,1766353838655,-9999.99,0.00010576,2]
[399438027,1766353838665,-299.99,0.00010576,2]
[399438028,1766353838675,-13312.29,0.00010576,2]
[399438029,1766353838684,-151.0,0.00010577,2]
[399438030,1766353838694,-151.0,0.00010577,2]
[399438031,1766353838703,-151.0,0.00010577,2]
[399438032,1766353838713,-151.0,0.00010577,2]
[399438033,1766353838723,-151.0,0.00010577,2]
[399438034,1766353838733,-151.0,0.00010577,2]
[399438035,1766353838743,-151.0,0.00010577,2]
[399438036,1766353838753,-151.0,0.00010577,2]
[399438037,1766353838763,-151.0,0.00010577,2]
[399438038,1766353838773,-151.0,0.00010577,2]
[399438039,1766353838783,-151.0,0.00010577,2]
[399438040,1766353838793,-151.0,0.00010577,2]
[399438041,1766353838803,-151.0,0.00010577,2]
[399438042,1766353838812,-151.0,0.00010577,2]
[399438043,1766353838822,-151.0,0.00010577,2]
[399438044,1766353838831,-151.0,0.00010577,2]
[399438045,1766353838841,-151.0,0.00010577,2]
[399438046,1766353838851,-151.0,0.00010577,2]
[399438047,1766353838860,-151.0,0.00010577,2]
[399438048,1766353838870,-151.0,0.00010577,2]
[399438049,1766353838879,-917.101,0.00010577,2]
[399438050,1766353838889,-360.12259176,0.00010578,2]
[399438051,1766353838898,-2145.07550922,0.00010582,2]
[399438052,1766353838908,-1836.61983424,0.00010683,2]
[399438053,1766353838918,-1000.0,0.00010683,2]
[399438054,1766353838927,-1864.83,0.00010718,2]
[399438055,1766353838936,-1618.06,0.00010848,2]
[399438056,1766353838945,-1170.73573743,0.000109,2]
[399438057,1766353838955,-200.0,0.00010947,2]
[399438058,1766353838965,-29862.54378874,0.00011099,2]
[399438059,1766353838974,-23647.07950576,0.00011099,2]
[399438060,1766353838983,-1618.06,0.00011122,2]
[399438061,1766353838994,-195.0,0.00011168,2]
[399438062,1766353839004,-300.0,0.00011168,2]
[399438063,1766353839013,-300.0,0.00011168,2]
[399438064,1766353839023,-250.0,0.00011168,2]
[399438065,1766353839033,-300.0,0.00011168,2]
[399438066,1766353839043,-1962.83301401,0.00011275,2]
[399438067,1766353839052,-23647.07950569,0.00011285,2]
[399438068,1766353839062,-29862.54378872,0.00011285,2]
[399438069,1766353839072,-1170.7357374,0.00011312,2]
[399438070,1766353839082,-1618.06,0.00011396,2]
[399438071,1766353839091,-420.0,0.00011516,2]
[399438072,1766353839101,-1680.0,0.00011522,2]
[399438073,1766353839110,-255.0,0.00011599,2]
[399438074,1766353839119,-1618.06,0.0001167,2]
[399438075,1766353839133,-622.24805632,0.00011836,2]
[399438076,1766353839142,-1618.06,0.00011944,2]
[399438077,1766353839152,-23647.07950569,0.00011987,2]
[399438078,1766353839163,-29862.54378872,0.00011987,2]
[399438079,1766353839173,-1832.75,0.00012055,2]
[399438080,1766353839183,-1618.06,0.00012218,2]
[399438081,1766353839192,-1170.7357374,0.00012244,2]
[399438082,1766353839202,-1618.06,0.00012492,2]
[399438083,1766353839211,-2351.0,0.00012674,2]
[399438084,1766353839220,-23647.07950569,0.00012689,2]
[399438085,1766353839229,-29862.54378872,0.00012689,2]
[399438086,1766353839239,-433.0,0.0001272,2]
[399438087,1766353839249,-1618.06,0.00012766,2]
[399438088,1766353839259,-689.39447173,0.00012894,2]
[399438089,1766353839268,-1618.06,0.0001304,2]
[399438090,1766353839277,-500.0,0.00013068,2]
[399438091,1766353839286,-1170.7357374,0.00013175,2]
[399438092,1766353839298,-622.24805632,0.00013291,2]
[399438093,1766353839307,-1618.06,0.00013314,2]
[399438094,1766353839316,-23647.07950569,0.00013391,2]
[399438095,1766353839325,-29862.54378872,0.00013391,2]
[399438097,1766353839632,-188.04,0.00013516,2]
[399438098,1766353839648,-151.0,0.00013544,2]
[399438099,1766353839657,-151.0,0.00013546,2]
[399438100,1766353839667,-151.0,0.00013579,2]
[399438101,1766353839676,-1618.06,0.00013588,2]
[399438102,1766353839686,-151.0,0.0001359,2]
[399438103,1766353839695,-500.0,0.00013643,2]
[399438104,1766353839705,-500.0,0.00013643,2]
[399438105,1766353839714,-264.97471348,0.00013643,2]
[399438106,1766353839723,-500.25022933,0.00013643,2]
[399438107,1766353839733,-500.0,0.00013643,2]
[399438108,1766353839742,-535.22474582,0.00013643,2]
[399438109,1766353839751,-500.0,0.00013643,2]
[399438110,1766353839761,-500.0,0.00013643,2]
[399438112,1766353839770,-501.40165484,0.00013643,2]
[399438114,1766353839779,-550.17823057,0.00013643,2]
[399438116,1766353839788,-500.0,0.00013643,2]
[399438117,1766353839798,-500.0,0.00013643,2]
[399438118,1766353839807,-500.0,0.00013643,2]
[399438119,1766353839816,-500.0,0.00013643,2]
[399438120,1766353839826,-500.0,0.00013643,2]
[399438121,1766353839835,-500.0,0.00013643,2]
[399438122,1766353839844,-500.0,0.00013643,2]
[399438123,1766353839852,-453.53849539,0.00013643,2]
[399438124,1766353839861,-500.0,0.00013643,2]
[399438125,1766353839871,-500.0,0.00013643,2]
[399438126,1766353839880,-500.0,0.00013643,2]
[399438127,1766353839889,-500.0,0.00013643,2]
[399438128,1766353839899,-500.0,0.00013643,2]
[399438129,1766353839908,-500.0,0.00013643,2]
[399438130,1766353839917,-500.0,0.00013643,2]
[399438131,1766353839927,-484.06013596,0.00013643,2]
[399438132,1766353839936,-500.0,0.00013643,2]
[399438133,1766353839947,-500.0,0.00013643,2]
[399438134,1766353839956,-500.0,0.00013643,2]
[399438135,1766353839966,-500.0,0.00013643,2]
[399438136,1766353839975,-500.0,0.00013643,2]
[399438137,1766353839984,-235.55154497,0.00013643,2]
[399438138,1766353839994,-500.0,0.00013698,2]
[399438139,1766353840003,-279.56152478,0.00013698,2]
[399438140,1766353840012,-500.0,0.00013698,2]
[399438141,1766353840024,-500.0,0.00013698,2]
[399438142,1766353840033,-500.0,0.00013698,2]
[399438143,1766353840044,-500.0,0.00013698,2]
[399438144,1766353840053,-500.0,0.00013698,2]
[399438145,1766353840062,-500.0,0.00013698,2]
[399438146,1766353840071,-500.0,0.00013698,2]
[399438147,1766353840082,-500.0,0.00013698,2]
[399438148,1766353840091,-500.0,0.00013698,2]
[399438149,1766353840101,-500.0,0.00013698,2]
[399438150,1766353840110,-500.0,0.00013698,2]
[399438151,1766353840120,-500.0,0.00013698,2]
[399438152,1766353840135,-500.0,0.00013698,2]
[399438153,1766353840144,-500.0,0.00013698,2]
[399438154,1766353840153,-500.0,0.00013698,2]
[399438155,1766353840163,-500.0,0.00013698,2]
[399438156,1766353840172,-500.0,0.00013698,2]
[399438157,1766353840182,-500.0,0.00013698,2]
[399438158,1766353840191,-500.0,0.00013698,2]
[399438159,1766353840201,-500.0,0.00013698,2]
[399438160,1766353840215,-500.0,0.00013698,2]
[399438161,1766353840225,-500.0,0.00013698,2]
[399438162,1766353840234,-500.0,0.00013698,2]
[399438163,1766353840244,-500.0,0.00013698,2]
[399438164,1766353840254,-500.0,0.00013698,2]
[399438165,1766353840264,-500.0,0.00013698,2]
[399438166,1766353840273,-500.0,0.00013698,2]
[399438167,1766353840282,-500.0,0.00013698,2]
[399438168,1766353840292,-500.0,0.00013698,2]
[399438169,1766353840304,-500.0,0.00013698,2]
[399438170,1766353840313,-500.0,0.00013698,2]
[399438171,1766353840324,-500.0,0.00013698,2]
[399438172,1766353840333,-500.0,0.00013698,2]
[399438173,1766353840342,-500.0,0.00013698,2]
[399438174,1766353840351,-500.0,0.00013698,2]
[399438175,1766353840360,-500.0,0.00013698,2]
[399438176,1766353840370,-500.0,0.00013698,2]
[399438178,1766353840380,-500.0,0.00013698,2]
[399438180,1766353840388,-500.0,0.00013698,2]
[399438181,1766353840397,-500.0,0.00013698,2]
[399438183,1766353840406,-500.0,0.00013698,2]
[399438184,1766353840415,-500.0,0.00013698,2]
[399438185,1766353840424,-500.0,0.00013698,2]
[399438186,1766353840434,-500.0,0.00013698,2]
[399438187,1766353840444,-500.0,0.00013698,2]
[399438188,1766353840454,-500.0,0.00013698,2]
[399438189,1766353840463,-344.15406571,0.00013698,2]
[399438190,1766353840472,-500.0,0.00013698,2]
[399438191,1766353840481,-500.0,0.00013698,2]
[399438192,1766353840490,-500.0,0.00013698,2]
[399438193,1766353840500,-500.0,0.00013698,2]
[399438194,1766353840510,-500.0,0.00013698,2]
[399438195,1766353840519,-500.0,0.00013698,2]
[399438196,1766353840528,-500.0,0.00013698,2]
[399438197,1766353840538,-500.0,0.00013698,2]
[399438198,1766353840547,-500.0,0.00013698,2]
[399438199,1766353840557,-500.0,0.00013698,2]
[399438200,1766353840566,-500.0,0.00013698,2]
[399438201,1766353840575,-500.0,0.00013698,2]
[399438202,1766353840584,-500.0,0.00013698,2]
[399438203,1766353840593,-500.0,0.00013698,2]
[399438204,1766353840603,-500.0,0.00013698,2]
[399438205,1766353840612,-500.0,0.00013698,2]
[399438206,1766353840624,-500.0,0.00013698,2]
[399438207,1766353840635,-500.0,0.00013698,2]
[399438208,1766353840644,-500.0,0.00013698,2]
[399438209,1766353840655,-500.0,0.00013698,2]
[399438210,1766353840663,-500.0,0.00013698,2]
[399438211,1766353840672,-500.0,0.00013698,2]
[399438212,1766353840681,-500.0,0.00013698,2]
[399438213,1766353840691,-500.0,0.00013698,2]
[399438214,1766353840700,-500.0,0.00013698,2]
[399438215,1766353840709,-500.0,0.00013698,2]
[399438216,1766353840718,-500.0,0.00013698,2]
[399438217,1766353840727,-500.0,0.00013698,2]
[399438218,1766353840736,-500.0,0.00013698,2]
[399438219,1766353840745,-500.0,0.00013698,2]
[399438220,1766353840754,-500.0,0.00013698,2]
[399438221,1766353840763,-500.0,0.00013698,2]
[399438222,1766353840772,-500.0,0.00013698,2]
[399438223,1766353840781,-500.0,0.00013698,2]
[399438224,1766353840790,-511.95166241,0.00013698,2]
[399438225,1766353840799,-500.0,0.00013698,2]
[399438226,1766353840808,-500.0,0.00013698,2]
[399438227,1766353840817,-200.0,0.00013699,2]
[399438228,1766353840826,-1000.0,0.00013699,2]
[399438229,1766353840835,-196.43,0.00013699,2]
[399438230,1766353840844,-166.66,0.00013699,2]
[399438231,1766353840853,-500.0,0.00013699,2]
[399438232,1766353840862,-500.0,0.00013699,2]
[399438233,1766353840871,-500.0,0.00013699,2]
[399438234,1766353840880,-500.0,0.00013699,2]
[399438235,1766353840889,-500.0,0.00013699,2]
[399438236,1766353840898,-500.0,0.00013699,2]
[399438237,1766353840907,-500.0,0.00013699,2]
[399438238,1766353840916,-500.0,0.00013699,2]
[399438239,1766353840925,-500.0,0.00013699,2]
[399438240,1766353840934,-500.0,0.00013699,2]
[399438241,1766353840943,-500.0,0.00013699,2]
[399438242,1766353840952,-500.0,0.00013699,2]
[399438243,1766353840961,-500.0,0.00013699,2]
[399438244,1766353840970,-500.0,0.00013699,2]
[399438245,1766353840979,-500.0,0.00013699,2]
[399438246,1766353840987,-500.0,0.00013699,2]
[399438247,1766353840996,-500.0,0.00013699,2]
[399438248,1766353841005,-185.86100093,0.00013699,2]
[399438249,1766353841014,-500.0,0.00013699,2]
[399438250,1766353841023,-500.0,0.00013699,2]
[399438251,1766353841032,-500.0,0.00013699,2]
[399438252,1766353841041,-500.0,0.00013699,2]
[399438253,1766353841051,-500.0,0.00013699,2]
[399438254,1766353841060,-500.0,0.00013699,2]
[399438255,1766353841069,-500.0,0.00013699,2]
[399438256,1766353841079,-500.0,0.00013699,2]
[399438257,1766353841088,-500.0,0.00013699,2]
[399438258,1766353841097,-500.0,0.00013699,2]
[399438259,1766353841106,-500.0,0.00013699,2]
[399438260,1766353841115,-500.0,0.00013699,2]
[399438261,1766353841125,-500.0,0.00013699,2]
[399438262,1766353841135,-500.0,0.00013699,2]
[399438263,1766353841144,-500.0,0.00013699,2]
[399438264,1766353841154,-500.0,0.00013699,2]
[399438265,1766353841163,-500.0,0.00013699,2]
[399438266,1766353841172,-500.0,0.00013699,2]
[399438267,1766353841182,-500.0,0.00013699,2]
[399438268,1766353841190,-500.0,0.00013699,2]
[399438269,1766353841199,-500.0,0.00013699,2]
[399438270,1766353841208,-500.0,0.00013699,2]
[399438271,1766353841217,-500.0,0.00013699,2]
[399438272,1766353841226,-500.0,0.00013699,2]
[399438273,1766353841235,-500.0,0.00013699,2]
[399438274,1766353841245,-500.0,0.00013699,2]
[399438275,1766353841255,-500.0,0.00013699,2]
[399438276,1766353841264,-500.0,0.00013699,2]
[399438277,1766353841273,-500.0,0.00013699,2]
[399438278,1766353841282,-500.0,0.00013699,2]
[399438279,1766353841291,-500.0,0.00013699,2]
[399438280,1766353841301,-500.0,0.00013699,2]
[399438281,1766353841310,-500.0,0.00013699,2]
[399438282,1766353841319,-500.0,0.00013699,2]
[399438283,1766353841328,-500.0,0.00013699,2]
[399438284,1766353841337,-500.0,0.00013699,2]
[399438285,1766353841346,-200.34837015,0.00013699,2]
[399438286,1766353841356,-500.0,0.00013699,2]
[399438287,1766353841365,-500.0,0.00013699,2]
[399438288,1766353841374,-500.0,0.00013699,2]
[399438289,1766353841383,-500.0,0.00013699,2]
[399438290,1766353841392,-500.0,0.00013699,2]
[399438291,1766353841402,-500.0,0.00013699,2]
[399438292,1766353841411,-600.0,0.00013699,2]
[399438293,1766353841420,-500.0,0.00013699,2]
[399438294,1766353841430,-500.0,0.00013699,2]
[399438295,1766353841439,-500.0,0.00013699,2]
[399438296,1766353841448,-166.66,0.00013836,2]
[399438297,1766353841457,-1618.06,0.00013862,2]
[399438298,1766353841466,-3292.0,0.00013941,2]
[399438299,1766353841475,-736.0,0.00013957,2]
[399438300,1766353841484,-166.66,0.00013973,2]
[399438301,1766353841493,-3728.0689,0.00014081,2]
[399438302,1766353841502,-23647.07950569,0.00014092,2]
[399438303,1766353841511,-29862.54378872,0.00014092,2]
[399438304,1766353841520,-1170.7357374,0.00014106,2]
[399438305,1766353841529,-166.66,0.0001411,2]
[399438306,1766353841539,-1618.06,0.00014136,2]
[399438307,1766353841548,-1000.0,0.00014191,2]
[399438308,1766353841557,-1000.0,0.00014191,2]
[399438309,1766353841566,-1000.0,0.00014191,2]
[399438310,1766353841576,-1000.0,0.00014191,2]
[399438311,1766353841585,-1000.0,0.00014191,2]
[399438312,1766353841594,-1000.0,0.00014191,2]
[399438313,1766353841603,-1000.0,0.00014191,2]
[399438314,1766353841613,-1000.0,0.00014191,2]
[399438315,1766353841622,-1000.0,0.00014191,2]
[399438316,1766353841631,-1000.0,0.00014191,2]
[399438317,1766353841640,-1000.0,0.00014191,2]
[399438318,1766353841652,-936.70587254,0.00014191,2]
[399438319,1766353841661,-803.77125516,0.00014191,2]
[399438320,1766353841671,-1144.26340267,0.00014191,2]
[399438321,1766353841680,-1000.0,0.00014191,2]
[399438322,1766353841689,-1000.0,0.00014191,2]
[399438323,1766353841698,-866.15226393,0.00014191,2]
[399438324,1766353841707,-1000.0,0.00014191,2]
[399438325,1766353841716,-1000.0,0.00014191,2]
[399438326,1766353841726,-1000.0,0.00014191,2]
[399438327,1766353841735,-1000.0,0.00014191,2]
[399438328,1766353841744,-1000.0,0.00014191,2]
[399438329,1766353841755,-1000.0,0.00014191,2]
[399438330,1766353841764,-166.66,0.00014247,2]
[399438331,1766353841773,-166.66,0.00014384,2]
[399438332,1766353841782,-1618.06,0.0001441,2]
[399438333,1766353841791,-1618.06,0.00014684,2]
[399438334,1766353841801,-1500.0,0.00014739,2]
[399438335,1766353841811,-1500.0,0.00014739,2]
[399438336,1766353841821,-500.84654228,0.00014739,2]
[399438337,1766353841831,-858.60637341,0.00014739,2]
[399438338,1766353841842,-597.40388542,0.00014739,2]
[399438339,1766353841851,-1500.0,0.00014739,2]
[399438340,1766353841861,-1500.0,0.00014739,2]
[399438341,1766353841871,-1500.0,0.00014739,2]
[399438342,1766353841881,-1500.0,0.00014739,2]
[399438343,1766353841890,-158.72296276,0.00014739,2]
[399438344,1766353841899,-1500.0,0.00014739,2]
[399438345,1766353841911,-1500.0,0.00014739,2]
[399438346,1766353841921,-1500.0,0.00014739,2]
[399438347,1766353841930,-1500.0,0.00014739,2]
[399438348,1766353841939,-980.21424336,0.00014739,2]
[399438349,1766353841948,-1503.75804982,0.00014739,2]
[399438350,1766353841957,-1500.0,0.00014739,2]
[399438351,1766353841967,-1500.0,0.00014739,2]
[399438352,1766353841976,-1500.0,0.00014739,2]
[399438353,1766353841985,-500.0,0.00014767,2]
[399438354,1766353841994,-23647.07950569,0.00014794,2]
[399438355,1766353842004,-29862.54378872,0.00014794,2]